[Event "Early-Titled-Tuesday-Blitz-May-14-2024"]
[Site "Chess.com"]
[Date "2024.05.14"]
[Round "2"]
[White "KuzubovYuriy"]
[Black "capatl"]
[Result "1-0"]
[WhiteElo "2949"]
[BlackElo "2633"]
[TimeControl "180+1"]
[EndTime "8:18:44 PDT"]
[Termination "KuzubovYuriy won by resignation"]

1. d4 {[%clk 0:03:00.9]} 1... d5 {[%clk 0:02:58.9]} 2. c4 {[%clk 0:03:01.4]}
2... e6 {[%clk 0:02:58.9]} 3. Nf3 {[%clk 0:03:02]} 3... Nf6 {[%clk 0:02:59.3]}
4. Nc3 {[%clk 0:03:02.6]} 4... Be7 {[%clk 0:02:57.8]} 5. Bf4 {[%clk 0:02:59.7]}
5... O-O {[%clk 0:02:41.9]} 6. e3 {[%clk 0:02:58.9]} 6... c5 {[%clk 0:02:37.1]}
7. dxc5 {[%clk 0:02:58]} 7... Bxc5 {[%clk 0:02:36.4]} 8. cxd5 {[%clk 0:02:58.5]}
8... Nxd5 {[%clk 0:02:31.2]} 9. Nxd5 {[%clk 0:02:58.5]} 9... exd5 {[%clk
0:02:32.1]} 10. a3 {[%clk 0:02:58.8]} 10... Nc6 {[%clk 0:02:28.6]} 11. Bd3
{[%clk 0:02:58.4]} 11... Be7 {[%clk 0:02:10.3]} 12. O-O {[%clk 0:02:41.5]} 12...
Bf6 {[%clk 0:02:03.4]} 13. Qc2 {[%clk 0:02:39.7]} 13... g6 {[%clk 0:01:54.3]}
14. h3 {[%clk 0:02:37.7]} 14... Be6 {[%clk 0:01:46.5]} 15. Rad1 {[%clk
0:02:34.8]} 15... Qb6 {[%clk 0:01:44.8]} 16. Rd2 {[%clk 0:02:25]} 16... Rac8
{[%clk 0:01:37.6]} 17. Qb1 {[%clk 0:02:23.3]} 17... Na5 {[%clk 0:01:14.7]} 18.
Be5 {[%clk 0:01:45.5]} 18... Bxe5 {[%clk 0:01:03.8]} 19. Nxe5 {[%clk 0:01:46.4]}
19... Nc4 {[%clk 0:01:04.1]} 20. Bxc4 {[%clk 0:01:32.4]} 20... dxc4 {[%clk
0:01:05]} 21. Rfd1 {[%clk 0:01:25.2]} 21... c3 {[%clk 0:00:57.5]} 22. bxc3
{[%clk 0:01:23.3]} 22... Rxc3 {[%clk 0:00:57.2]} 23. Qxb6 {[%clk 0:01:18.3]}
23... axb6 {[%clk 0:00:58.1]} 24. Rb1 {[%clk 0:01:18.5]} 24... Rxa3 {[%clk
0:00:46.1]} 25. Rxb6 {[%clk 0:01:18.1]} 25... Re8 {[%clk 0:00:22.2]} 26. Rxb7
{[%clk 0:01:07.7]} 26... Bc8 {[%clk 0:00:13.6]} 27. Rb5 {[%clk 0:01:07.5]} 27...
Ba6 {[%clk 0:00:12.7]} 28. Rc5 {[%clk 0:01:06.3]} 28... Ra1+ {[%clk 0:00:12.1]}
29. Kh2 {[%clk 0:01:06.4]} 29... Bb7 {[%clk 0:00:12]} 30. Rd7 {[%clk 0:00:56.1]}
30... Bc8 {[%clk 0:00:10.7]} 31. Rd2 {[%clk 0:00:50.5]} 31... Be6 {[%clk
0:00:11.6]} 32. g4 {[%clk 0:00:48.2]} 32... Ra4 {[%clk 0:00:11.1]} 33. Kg3
{[%clk 0:00:47.5]} 33... Kg7 {[%clk 0:00:10.2]} 34. Nf3 {[%clk 0:00:42.6]} 34...
Re7 {[%clk 0:00:09.4]} 35. Nd4 {[%clk 0:00:41.6]} 35... Bd7 {[%clk 0:00:08.5]}
36. Rc7 {[%clk 0:00:40.9]} 36... Kf8 {[%clk 0:00:07.9]} 37. Nf3 {[%clk
0:00:28.1]} 37... Be6 {[%clk 0:00:07.9]} 38. Rd8+ {[%clk 0:00:26.9]} 38... Re8
{[%clk 0:00:07.8]} 39. Rxe8+ {[%clk 0:00:27.2]} 39... Kxe8 {[%clk 0:00:08.7]}
40. Ng5 {[%clk 0:00:27.6]} 40... Bd5 {[%clk 0:00:06.8]} 41. Nxh7 {[%clk
0:00:27.8]} 41... Be6 {[%clk 0:00:05.8]} 42. Ng5 {[%clk 0:00:27.3]} 42... Bd5
{[%clk 0:00:05.9]} 43. f3 {[%clk 0:00:26.4]} 43... Ra3 {[%clk 0:00:05.9]} 44. e4
{[%clk 0:00:26.6]} 44... Ba2 {[%clk 0:00:06.2]} 45. Rc1 {[%clk 0:00:20.3]} 45...
Rd3 {[%clk 0:00:06.2]} 46. h4 {[%clk 0:00:19.7]} 46... Bb3 {[%clk 0:00:07.1]}
47. Nh3 {[%clk 0:00:19.3]} 47... Bd1 {[%clk 0:00:07]} 48. Ng1 {[%clk 0:00:19.5]}
48... Rd2 {[%clk 0:00:06.4]} 49. Rc3 {[%clk 0:00:19.4]} 49... Bc2 {[%clk
0:00:06.9]} 50. Re3 {[%clk 0:00:19.1]} 50... Bd3 {[%clk 0:00:07.8]} 51. Nh3
{[%clk 0:00:19.3]} 51... Bc4 {[%clk 0:00:08.3]} 52. Nf4 {[%clk 0:00:18.8]} 52...
Bf1 {[%clk 0:00:08.8]} 53. g5 {[%clk 0:00:18.7]} 53... Kf8 {[%clk 0:00:09.2]}
54. Nd5 {[%clk 0:00:18.5]} 54... Kg7 {[%clk 0:00:09.7]} 55. Nf6 {[%clk
0:00:18.5]} 55... Rg2+ {[%clk 0:00:10]} 56. Kf4 {[%clk 0:00:17.7]} 56... Rxg5
{[%clk 0:00:10.9]} 57. hxg5 {[%clk 0:00:17.8]} 57... Bh3 {[%clk 0:00:10]} 58.
Rc3 {[%clk 0:00:17.9]} 58... Bc8 {[%clk 0:00:10.1]} 59. Rd3 {[%clk 0:00:18.3]}
1-0

[Event "Early-Titled-Tuesday-Blitz-May-14-2024"]
[Site "Chess.com"]
[Date "2024.05.14"]
[Round "2"]
[White "lilleper1"]
[Black "bescmelasti"]
[Result "1-0"]
[WhiteElo "2913"]
[BlackElo "2617"]
[TimeControl "180+1"]
[EndTime "8:18:46 PDT"]
[Termination "lilleper1 won by resignation"]

1. e4 {[%clk 0:03:00.9]} 1... c5 {[%clk 0:02:56.3]} 2. Nf3 {[%clk 0:03:01.1]}
2... e6 {[%clk 0:02:55.2]} 3. g3 {[%clk 0:03:00]} 3... Nc6 {[%clk 0:02:55.1]} 4.
Bg2 {[%clk 0:02:59.5]} 4... Nf6 {[%clk 0:02:55.6]} 5. Nc3 {[%clk 0:02:59.5]}
5... d5 {[%clk 0:02:52.1]} 6. exd5 {[%clk 0:02:59.7]} 6... exd5 {[%clk
0:02:52.3]} 7. d4 {[%clk 0:02:59.6]} 7... cxd4 {[%clk 0:02:52.7]} 8. Nxd4 {[%clk
0:02:58.4]} 8... Bg4 {[%clk 0:02:52.1]} 9. Nde2 {[%clk 0:02:56.6]} 9... Bb4
{[%clk 0:02:48]} 10. O-O {[%clk 0:02:55.1]} 10... O-O {[%clk 0:02:44]} 11. h3
{[%clk 0:02:52.2]} 11... Be6 {[%clk 0:02:27.6]} 12. Bg5 {[%clk 0:02:27.3]} 12...
d4 {[%clk 0:01:57.8]} 13. Ne4 {[%clk 0:02:09.6]} 13... Be7 {[%clk 0:01:57.4]}
14. Bxf6 {[%clk 0:02:07.8]} 14... Bxf6 {[%clk 0:01:57]} 15. Nc5 {[%clk
0:02:04.8]} 15... Bc8 {[%clk 0:01:51.6]} 16. Nf4 {[%clk 0:02:03.4]} 16... Be7
{[%clk 0:01:43.9]} 17. Ncd3 {[%clk 0:01:58.9]} 17... Bd6 {[%clk 0:01:40.2]} 18.
Re1 {[%clk 0:01:54.9]} 18... Bf5 {[%clk 0:01:34.5]} 19. Qf3 {[%clk 0:01:51.4]}
19... Qd7 {[%clk 0:01:14.7]} 20. g4 {[%clk 0:01:35.9]} 20... Bxf4 {[%clk
0:01:11.4]} 21. Qxf4 {[%clk 0:01:32.8]} 21... Bxd3 {[%clk 0:01:07.6]} 22. cxd3
{[%clk 0:01:33.7]} 22... Rfe8 {[%clk 0:01:06.7]} 23. Be4 {[%clk 0:01:29]} 23...
g6 {[%clk 0:01:02.7]} 24. Rac1 {[%clk 0:01:28.1]} 24... Rac8 {[%clk 0:01:02.1]}
25. Rc5 {[%clk 0:01:26.6]} 25... b6 {[%clk 0:00:53.7]} 26. Rcc1 {[%clk
0:01:22.3]} 26... Ne5 {[%clk 0:00:46.3]} 27. Rxc8 {[%clk 0:01:10.2]} 27... Qxc8
{[%clk 0:00:47.2]} 28. Rc1 {[%clk 0:01:09.5]} 28... Qd7 {[%clk 0:00:39.1]} 29.
Kg2 {[%clk 0:01:05.8]} 29... Kg7 {[%clk 0:00:38.3]} 30. a3 {[%clk 0:01:02.2]}
30... Qd6 {[%clk 0:00:32.8]} 31. h4 {[%clk 0:00:55.1]} 31... h6 {[%clk
0:00:21.5]} 32. g5 {[%clk 0:00:50.9]} 32... hxg5 {[%clk 0:00:20.3]} 33. hxg5
{[%clk 0:00:51.8]} 33... Rh8 {[%clk 0:00:19.5]} 34. Rc6 {[%clk 0:00:48.3]} 34...
Qe7 {[%clk 0:00:17.9]} 35. Qf6+ {[%clk 0:00:48.4]} 35... Qxf6 {[%clk 0:00:16]}
36. gxf6+ {[%clk 0:00:49.3]} 36... Kh6 {[%clk 0:00:16]} 37. Rc7 {[%clk
0:00:49.2]} 37... Kg5 {[%clk 0:00:15]} 38. Rxa7 {[%clk 0:00:47.6]} 38... Rb8
{[%clk 0:00:13.4]} 39. Ra4 {[%clk 0:00:41.6]} 39... Rd8 {[%clk 0:00:12.6]} 40.
Rb4 {[%clk 0:00:34.4]} 40... Rd6 {[%clk 0:00:12.5]} 41. Rb5 {[%clk 0:00:34.6]}
41... Kxf6 {[%clk 0:00:12.2]} 42. b4 {[%clk 0:00:33.3]} 42... Ke6 {[%clk
0:00:11.8]} 43. f4 {[%clk 0:00:31.6]} 43... Nd7 {[%clk 0:00:07.5]} 44. a4 {[%clk
0:00:31.5]} 44... Nf6 {[%clk 0:00:07.5]} 45. Bf3 {[%clk 0:00:28.3]} 45... Kd7
{[%clk 0:00:06.6]} 46. a5 {[%clk 0:00:22.3]} 46... bxa5 {[%clk 0:00:07.5]} 47.
bxa5 {[%clk 0:00:22.4]} 47... Kc7 {[%clk 0:00:07.7]} 48. Rb7+ {[%clk 0:00:21.3]}
48... Kd8 {[%clk 0:00:07.2]} 49. Rxf7 {[%clk 0:00:20.3]} 49... Ra6 {[%clk
0:00:08.1]} 50. Bb7 {[%clk 0:00:20.1]} 50... Ra7 {[%clk 0:00:07.4]} 51. a6
{[%clk 0:00:19.9]} 51... Nh5 {[%clk 0:00:06.1]} 52. Kf3 {[%clk 0:00:19.1]} 52...
Ke8 {[%clk 0:00:04.7]} 53. Rc7 {[%clk 0:00:18.8]} 53... Kf8 {[%clk 0:00:04.9]}
54. Rd7 {[%clk 0:00:17.4]} 54... Nf6 {[%clk 0:00:04.3]} 55. Rxd4 {[%clk
0:00:17.6]} 1-0

[Event "Early-Titled-Tuesday-Blitz-May-14-2024"]
[Site "Chess.com"]
[Date "2024.05.14"]
[Round "2"]
[White "vladislavkovalev"]
[Black "Kushch_Nikolai"]
[Result "1-0"]
[WhiteElo "2843"]
[BlackElo "2423"]
[TimeControl "180+1"]
[EndTime "8:18:47 PDT"]
[Termination "vladislavkovalev won on time"]

1. e4 {[%clk 0:03:00.9]} 1... c5 {[%clk 0:02:59.7]} 2. Nf3 {[%clk 0:03:00.6]}
2... e6 {[%clk 0:02:59.5]} 3. c3 {[%clk 0:03:00.3]} 3... d5 {[%clk 0:02:59]} 4.
exd5 {[%clk 0:03:00.7]} 4... exd5 {[%clk 0:02:58]} 5. d4 {[%clk 0:03:01.1]} 5...
Nc6 {[%clk 0:02:57.4]} 6. Bb5 {[%clk 0:03:00.6]} 6... Bd6 {[%clk 0:02:56.8]} 7.
O-O {[%clk 0:03:00.5]} 7... Ne7 {[%clk 0:02:56.6]} 8. dxc5 {[%clk 0:03:00.7]}
8... Bxc5 {[%clk 0:02:56.5]} 9. Bg5 {[%clk 0:03:01.3]} 9... O-O {[%clk
0:02:53.5]} 10. Nbd2 {[%clk 0:03:01.2]} 10... a6 {[%clk 0:02:39.6]} 11. Bd3
{[%clk 0:02:57.8]} 11... Qc7 {[%clk 0:02:34.1]} 12. Qc2 {[%clk 0:02:54.6]} 12...
h6 {[%clk 0:02:17.2]} 13. Bh4 {[%clk 0:02:54.5]} 13... Bd6 {[%clk 0:02:13.4]}
14. Bg3 {[%clk 0:02:52.8]} 14... Bg4 {[%clk 0:02:08.7]} 15. Rfe1 {[%clk
0:02:50.9]} 15... Rac8 {[%clk 0:02:06.2]} 16. Qa4 {[%clk 0:02:46.5]} 16... Bxg3
{[%clk 0:02:02.4]} 17. hxg3 {[%clk 0:02:41.6]} 17... Bf5 {[%clk 0:02:01.5]} 18.
Bxf5 {[%clk 0:02:39.3]} 18... Nxf5 {[%clk 0:02:01]} 19. Nb3 {[%clk 0:02:30.9]}
19... Rfd8 {[%clk 0:01:58.6]} 20. Rad1 {[%clk 0:02:29.6]} 20... Nce7 {[%clk
0:01:38.9]} 21. Qg4 {[%clk 0:02:21.3]} 21... Qb6 {[%clk 0:01:32.7]} 22. Rd2
{[%clk 0:02:14]} 22... Qg6 {[%clk 0:01:31.6]} 23. Qxg6 {[%clk 0:02:09.2]} 23...
Nxg6 {[%clk 0:01:30.5]} 24. Red1 {[%clk 0:02:08.2]} 24... Nge7 {[%clk
0:01:28.3]} 25. Ne5 {[%clk 0:01:56.5]} 25... Nd6 {[%clk 0:01:27.8]} 26. Re2
{[%clk 0:01:47.6]} 26... Kf8 {[%clk 0:01:27]} 27. Rde1 {[%clk 0:01:47.7]} 27...
Rc7 {[%clk 0:01:26.1]} 28. Nd4 {[%clk 0:01:47.3]} 28... Ne4 {[%clk 0:01:18.3]}
29. g4 {[%clk 0:01:43.4]} 29... Rd6 {[%clk 0:01:16.3]} 30. f3 {[%clk 0:01:43.4]}
30... Nc5 {[%clk 0:01:14.3]} 31. Re3 {[%clk 0:01:28.9]} 31... f6 {[%clk
0:01:13.4]} 32. Nd3 {[%clk 0:01:23.5]} 32... Nxd3 {[%clk 0:01:09.1]} 33. Rxd3
{[%clk 0:01:24.4]} 33... Kf7 {[%clk 0:01:06.7]} 34. Rde3 {[%clk 0:01:25]} 34...
Nc6 {[%clk 0:01:03.1]} 35. Nf5 {[%clk 0:01:25.5]} 35... Rd8 {[%clk 0:00:59.5]}
36. Re6 {[%clk 0:01:24.3]} 36... Ne5 {[%clk 0:00:58.1]} 37. Rb6 {[%clk
0:01:10.2]} 37... Nc4 {[%clk 0:00:56.9]} 38. Rb4 {[%clk 0:01:10.7]} 38... b5
{[%clk 0:00:52.1]} 39. a4 {[%clk 0:01:10.8]} 39... Rb8 {[%clk 0:00:48.7]} 40. b3
{[%clk 0:01:01.1]} 40... Nb2 {[%clk 0:00:47.1]} 41. Re2 {[%clk 0:00:32.6]} 41...
Nd3 {[%clk 0:00:44.6]} 42. Rd4 {[%clk 0:00:32.9]} 42... Ne5 {[%clk 0:00:37.9]}
43. Rxd5 {[%clk 0:00:32]} 43... Rxc3 {[%clk 0:00:37.5]} 44. f4 {[%clk
0:00:28.5]} 44... Rc1+ {[%clk 0:00:37.2]} 45. Kf2 {[%clk 0:00:27.3]} 45... Nxg4+
{[%clk 0:00:37.1]} 46. Kg3 {[%clk 0:00:26.9]} 46... h5 {[%clk 0:00:36.9]} 47.
Rd7+ {[%clk 0:00:22.5]} 47... Kf8 {[%clk 0:00:36.1]} 48. Ree7 {[%clk 0:00:14.3]}
48... Nh6 {[%clk 0:00:19.8]} 49. Nxg7 {[%clk 0:00:11.6]} 49... bxa4 {[%clk
0:00:13.2]} 50. Ne6+ {[%clk 0:00:11.5]} 50... Kg8 {[%clk 0:00:12.8]} 51. Rg7+
{[%clk 0:00:12.4]} 1-0

[Event "Early-Titled-Tuesday-Blitz-May-14-2024"]
[Site "Chess.com"]
[Date "2024.05.14"]
[Round "2"]
[White "FLYD"]
[Black "FollowRivers"]
[Result "0-1"]
[WhiteElo "1981"]
[BlackElo "2452"]
[TimeControl "180+1"]
[EndTime "8:18:48 PDT"]
[Termination "FollowRivers won by checkmate"]

1. e4 {[%clk 0:03:00.9]} 1... c5 {[%clk 0:02:59.7]} 2. Nf3 {[%clk 0:03:00.6]}
2... d6 {[%clk 0:02:58.9]} 3. d4 {[%clk 0:03:01.1]} 3... cxd4 {[%clk 0:02:59.8]}
4. Nxd4 {[%clk 0:03:02]} 4... Nf6 {[%clk 0:02:59.8]} 5. Nc3 {[%clk 0:03:02.7]}
5... g6 {[%clk 0:02:59.1]} 6. Be3 {[%clk 0:03:02.4]} 6... Nc6 {[%clk 0:02:59.4]}
7. f3 {[%clk 0:02:53.6]} 7... h5 {[%clk 0:02:56.5]} 8. Bc4 {[%clk 0:02:51.9]}
8... Bd7 {[%clk 0:02:55.7]} 9. Qd2 {[%clk 0:02:48.6]} 9... Bg7 {[%clk
0:02:54.6]} 10. O-O-O {[%clk 0:02:46.5]} 10... Rc8 {[%clk 0:02:54.3]} 11. Nxc6
{[%clk 0:02:46.9]} 11... bxc6 {[%clk 0:02:43.8]} 12. h3 {[%clk 0:02:46.7]} 12...
Qa5 {[%clk 0:02:28]} 13. Bb3 {[%clk 0:02:45.4]} 13... c5 {[%clk 0:02:20.7]} 14.
e5 {[%clk 0:02:23.4]} 14... dxe5 {[%clk 0:01:49.9]} 15. Bg5 {[%clk 0:02:20.6]}
15... Rd8 {[%clk 0:01:31.5]} 16. Bxf6 {[%clk 0:02:15.5]} 16... Bxf6 {[%clk
0:01:32.4]} 17. Qd5 {[%clk 0:02:04.3]} 17... O-O {[%clk 0:01:23.1]} 18. Ne4
{[%clk 0:02:01.6]} 18... Be6 {[%clk 0:00:58.3]} 19. Qxc5 {[%clk 0:01:59.8]}
19... Qa6 {[%clk 0:00:49.6]} 20. Nxf6+ {[%clk 0:01:52]} 20... exf6 {[%clk
0:00:50.5]} 21. Bxe6 {[%clk 0:01:42]} 21... Qxe6 {[%clk 0:00:49.1]} 22. Kb1
{[%clk 0:01:31]} 22... Rc8 {[%clk 0:00:49.3]} 23. Qd6 {[%clk 0:01:22.7]} 23...
Qc4 {[%clk 0:00:44]} 24. Rd2 {[%clk 0:01:19.6]} 24... Rc6 {[%clk 0:00:42.3]} 25.
Qd7 {[%clk 0:01:12.6]} 25... Rfc8 {[%clk 0:00:39.2]} 26. Rc1 {[%clk 0:01:08.7]}
26... Ra6 {[%clk 0:00:37.3]} 27. b3 {[%clk 0:01:06.2]} 27... Qc3 {[%clk
0:00:37.9]} 28. Rd3 {[%clk 0:01:04.4]} 28... Qc5 {[%clk 0:00:33.4]} 29. Rd5
{[%clk 0:00:57.1]} 29... Qc3 {[%clk 0:00:28.4]} 30. Rd3 {[%clk 0:00:56.3]} 30...
Qc5 {[%clk 0:00:26.7]} 31. g4 {[%clk 0:00:44.7]} 31... h4 {[%clk 0:00:23.1]} 32.
c4 {[%clk 0:00:38]} 32... Kg7 {[%clk 0:00:20.5]} 33. Rd5 {[%clk 0:00:33.8]}
33... Qa3 {[%clk 0:00:19.3]} 34. Rc2 {[%clk 0:00:34.4]} 34... Rb8 {[%clk
0:00:18.5]} 35. Rb5 {[%clk 0:00:30.5]} 35... Rab6 {[%clk 0:00:10.4]} 36. Rxb6
{[%clk 0:00:29.6]} 36... Rxb6 {[%clk 0:00:11.3]} 37. Qd5 {[%clk 0:00:24]} 37...
Rd6 {[%clk 0:00:08.3]} 38. g5 {[%clk 0:00:18.4]} 38... Rxd5 {[%clk 0:00:07.5]}
39. gxf6+ {[%clk 0:00:19.3]} 39... Kxf6 {[%clk 0:00:08.2]} 40. cxd5 {[%clk
0:00:19.6]} 40... Kf5 {[%clk 0:00:04.5]} 41. Rd2 {[%clk 0:00:16.5]} 41... Qb4
{[%clk 0:00:04.4]} 42. Kc2 {[%clk 0:00:16.2]} 42... Qd6 {[%clk 0:00:04.8]} 43.
a4 {[%clk 0:00:14.9]} 43... Kf4 {[%clk 0:00:05.5]} 44. Rd3 {[%clk 0:00:15.1]}
44... f5 {[%clk 0:00:05.5]} 45. Kc3 {[%clk 0:00:14.4]} 45... e4 {[%clk
0:00:05.7]} 46. fxe4 {[%clk 0:00:14.9]} 46... fxe4 {[%clk 0:00:06.6]} 47. Rd4
{[%clk 0:00:15.2]} 47... Qc5+ {[%clk 0:00:07]} 48. Rc4 {[%clk 0:00:14.5]} 48...
Qxd5 {[%clk 0:00:07.7]} 49. b4 {[%clk 0:00:14.9]} 49... Qd3+ {[%clk 0:00:07.8]}
50. Kb2 {[%clk 0:00:14.7]} 50... Qxc4 {[%clk 0:00:08.7]} 51. Ka3 {[%clk
0:00:15]} 51... e3 {[%clk 0:00:08.9]} 52. a5 {[%clk 0:00:15.9]} 52... a6 {[%clk
0:00:08.1]} 53. b5 {[%clk 0:00:16.2]} 53... Qxb5 {[%clk 0:00:07.5]} 54. Ka2
{[%clk 0:00:16.9]} 54... Qb4 {[%clk 0:00:08.1]} 55. Ka1 {[%clk 0:00:17.2]} 55...
e2 {[%clk 0:00:09]} 56. Ka2 {[%clk 0:00:17.7]} 56... Ke4 {[%clk 0:00:09.6]} 57.
Ka1 {[%clk 0:00:18.1]} 57... e1=Q+ {[%clk 0:00:10.2]} 58. Ka2 {[%clk 0:00:18.5]}
58... Qeb1# {[%clk 0:00:11.1]} 0-1

[Event "Early-Titled-Tuesday-Blitz-May-14-2024"]
[Site "Chess.com"]
[Date "2024.05.14"]
[Round "2"]
[White "HamedWafa4"]
[Black "wonderfultime"]
[Result "0-1"]
[WhiteElo "2662"]
[BlackElo "3059"]
[TimeControl "180+1"]
[EndTime "8:18:52 PDT"]
[Termination "wonderfultime won by resignation"]

1. e4 {[%clk 0:02:59.8]} 1... e5 {[%clk 0:02:59.5]} 2. Nf3 {[%clk 0:02:59]} 2...
Nc6 {[%clk 0:03:00]} 3. d4 {[%clk 0:02:56.5]} 3... exd4 {[%clk 0:02:58]} 4. Nxd4
{[%clk 0:02:50.9]} 4... Bc5 {[%clk 0:02:57.9]} 5. Nb3 {[%clk 0:02:50.5]} 5...
Bb6 {[%clk 0:02:57]} 6. Nc3 {[%clk 0:02:50.9]} 6... d6 {[%clk 0:02:49.5]} 7. Qe2
{[%clk 0:02:50]} 7... a5 {[%clk 0:02:48.6]} 8. a4 {[%clk 0:02:43.8]} 8... Nb4
{[%clk 0:02:40.5]} 9. Nb5 {[%clk 0:02:22.2]} 9... Ne7 {[%clk 0:02:26.2]} 10. c3
{[%clk 0:02:20.9]} 10... Nbc6 {[%clk 0:02:26.5]} 11. Be3 {[%clk 0:02:18.1]}
11... Bxe3 {[%clk 0:02:26.5]} 12. Qxe3 {[%clk 0:02:18.7]} 12... Be6 {[%clk
0:02:21]} 13. N3d4 {[%clk 0:02:17.7]} 13... Nxd4 {[%clk 0:02:21.2]} 14. cxd4
{[%clk 0:02:16.1]} 14... c6 {[%clk 0:02:20.5]} 15. Nc3 {[%clk 0:02:16.2]} 15...
O-O {[%clk 0:02:20.4]} 16. Bd3 {[%clk 0:02:15.5]} 16... Qb6 {[%clk 0:02:17.5]}
17. Rb1 {[%clk 0:02:10]} 17... d5 {[%clk 0:02:05]} 18. O-O {[%clk 0:01:38.5]}
18... dxe4 {[%clk 0:02:04]} 19. Qxe4 {[%clk 0:01:38.5]} 19... g6 {[%clk
0:01:58.6]} 20. Rfd1 {[%clk 0:01:30.5]} 20... Rad8 {[%clk 0:01:56.4]} 21. Bc2
{[%clk 0:01:29.4]} 21... Bf5 {[%clk 0:01:42.8]} 22. Qe2 {[%clk 0:01:29.2]} 22...
Rxd4 {[%clk 0:01:29.3]} 23. Rxd4 {[%clk 0:01:21.5]} 23... Qxd4 {[%clk
0:01:28.1]} 24. Re1 {[%clk 0:01:13.3]} 24... Bxc2 {[%clk 0:01:21.4]} 25. Qxc2
{[%clk 0:01:12.6]} 25... Nf5 {[%clk 0:01:21.9]} 26. Rd1 {[%clk 0:01:11.3]} 26...
Qe5 {[%clk 0:01:19.8]} 27. Qd3 {[%clk 0:00:58.7]} 27... Re8 {[%clk 0:01:18.4]}
28. g3 {[%clk 0:00:58.6]} 28... h5 {[%clk 0:01:17]} 29. h4 {[%clk 0:00:54.4]}
29... Re6 {[%clk 0:01:04]} 30. Kg2 {[%clk 0:00:34.3]} 30... Rd6 {[%clk
0:00:57.6]} 31. Qc2 {[%clk 0:00:32.5]} 31... Kf8 {[%clk 0:00:42.3]} 32. Rxd6
{[%clk 0:00:30.3]} 32... Qxd6 {[%clk 0:00:43.2]} 33. Qb3 {[%clk 0:00:29.1]}
33... Qb4 {[%clk 0:00:40.4]} 34. Qc2 {[%clk 0:00:27.8]} 34... Kg7 {[%clk
0:00:28.4]} 35. Qd2 {[%clk 0:00:23.6]} 35... Qd4 {[%clk 0:00:27.3]} 36. Qc2
{[%clk 0:00:23.7]} 36... Nh6 {[%clk 0:00:23]} 37. Ne4 {[%clk 0:00:22]} 37... Ng4
{[%clk 0:00:23.1]} 38. Ng5 {[%clk 0:00:20.9]} 38... Kg8 {[%clk 0:00:20.5]} 39.
Qe2 {[%clk 0:00:18.5]} 39... Qd5+ {[%clk 0:00:20.8]} 40. Kg1 {[%clk 0:00:15.4]}
40... Ne5 {[%clk 0:00:20.6]} 41. f4 {[%clk 0:00:14.5]} 41... Ng4 {[%clk
0:00:20.9]} 42. Qe8+ {[%clk 0:00:13]} 42... Kg7 {[%clk 0:00:21.5]} 43. Qe2
{[%clk 0:00:13.6]} 43... Qd4+ {[%clk 0:00:20.8]} 44. Kg2 {[%clk 0:00:13.4]}
44... Qxa4 {[%clk 0:00:17.7]} 45. Qe7 {[%clk 0:00:11.2]} 45... Qc2+ {[%clk
0:00:17.7]} 46. Kf3 {[%clk 0:00:07.7]} 46... Qf2+ {[%clk 0:00:17.1]} 47. Ke4
{[%clk 0:00:08.2]} 47... Qe1+ {[%clk 0:00:17.6]} 0-1

[Event "Early-Titled-Tuesday-Blitz-May-14-2024"]
[Site "Chess.com"]
[Date "2024.05.14"]
[Round "2"]
[White "ninguno46"]
[Black "chito89"]
[Result "0-1"]
[WhiteElo "2553"]
[BlackElo "2795"]
[TimeControl "180+1"]
[EndTime "8:18:52 PDT"]
[Termination "chito89 won by resignation"]

1. Nf3 {[%clk 0:02:58.8]} 1... Nf6 {[%clk 0:02:58.4]} 2. d4 {[%clk 0:02:58.4]}
2... e6 {[%clk 0:02:57.7]} 3. Bg5 {[%clk 0:02:57.9]} 3... h6 {[%clk 0:02:57]} 4.
Bh4 {[%clk 0:02:55.7]} 4... d6 {[%clk 0:02:56]} 5. h3 {[%clk 0:02:55.2]} 5... b6
{[%clk 0:02:54.1]} 6. Nbd2 {[%clk 0:02:54.8]} 6... Bb7 {[%clk 0:02:53]} 7. e3
{[%clk 0:02:55]} 7... Nbd7 {[%clk 0:02:48.7]} 8. Bd3 {[%clk 0:02:53.3]} 8... g5
{[%clk 0:02:47.5]} 9. Bg3 {[%clk 0:02:52.6]} 9... Rg8 {[%clk 0:02:41.9]} 10. Qe2
{[%clk 0:02:47.1]} 10... a6 {[%clk 0:02:40.9]} 11. O-O-O {[%clk 0:02:45.2]}
11... b5 {[%clk 0:02:40.5]} 12. Kb1 {[%clk 0:02:43.6]} 12... c5 {[%clk
0:02:34.6]} 13. c3 {[%clk 0:02:43]} 13... Qb6 {[%clk 0:02:31.2]} 14. e4 {[%clk
0:02:39.3]} 14... Rc8 {[%clk 0:02:16.2]} 15. e5 {[%clk 0:01:49.9]} 15... c4
{[%clk 0:02:11.1]} 16. Bc2 {[%clk 0:01:43.6]} 16... dxe5 {[%clk 0:01:54.2]} 17.
Nxe5 {[%clk 0:01:15.5]} 17... Bxg2 {[%clk 0:01:49.7]} 18. Rhe1 {[%clk
0:01:08.6]} 18... Bd5 {[%clk 0:01:49.7]} 19. Ne4 {[%clk 0:00:58.9]} 19... b4
{[%clk 0:01:40.4]} 20. Nxf6+ {[%clk 0:00:53.2]} 20... Nxf6 {[%clk 0:01:39.1]}
21. Ba4+ {[%clk 0:00:51]} 21... Kd8 {[%clk 0:01:36.2]} 22. Nxf7+ {[%clk
0:00:42.1]} 22... Ke7 {[%clk 0:01:35.6]} 23. Nd6 {[%clk 0:00:41.8]} 23... Rd8
{[%clk 0:01:28.5]} 24. Nxc4 {[%clk 0:00:17.2]} 24... Qb7 {[%clk 0:01:28.3]} 25.
Ne3 {[%clk 0:00:10.5]} 25... Be4+ {[%clk 0:01:21.5]} 26. Ka1 {[%clk 0:00:10.2]}
26... Kf7 {[%clk 0:01:22.2]} 27. Bb3 {[%clk 0:00:09.7]} 27... bxc3 {[%clk
0:01:15.1]} 28. bxc3 {[%clk 0:00:09.3]} 28... Rg6 {[%clk 0:01:08.6]} 29. Nc4
{[%clk 0:00:09.2]} 29... Rd5 {[%clk 0:00:42.8]} 30. Ne5+ {[%clk 0:00:09.1]}
30... Rxe5 {[%clk 0:00:43.5]} 31. dxe5 {[%clk 0:00:08.9]} 31... Bf3 {[%clk
0:00:44.2]} 32. Qd3 {[%clk 0:00:08.7]} 32... Bxd1 {[%clk 0:00:44]} 33. Rxd1
{[%clk 0:00:08.9]} 33... Nh5 {[%clk 0:00:42.1]} 34. Qd7+ {[%clk 0:00:08.4]}
34... Qxd7 {[%clk 0:00:41.9]} 35. Rxd7+ {[%clk 0:00:09.3]} 35... Ke8 {[%clk
0:00:41.8]} 36. Ra7 {[%clk 0:00:09]} 36... g4 {[%clk 0:00:31.2]} 37. Ba4+ {[%clk
0:00:09.9]} 37... Kd8 {[%clk 0:00:30.7]} 38. Rd7+ {[%clk 0:00:04.5]} 38... Kc8
{[%clk 0:00:30.8]} 39. hxg4 {[%clk 0:00:04.5]} 39... Rxg4 {[%clk 0:00:31.2]} 40.
Rf7 {[%clk 0:00:04]} 40... Ba3 {[%clk 0:00:24.3]} 41. Bd1 {[%clk 0:00:04.4]}
41... Re4 {[%clk 0:00:23]} 42. Kb1 {[%clk 0:00:04.1]} 42... Nxg3 {[%clk
0:00:21.4]} 43. Kc2 {[%clk 0:00:05]} 43... Nf5 {[%clk 0:00:18.1]} 44. Bf3 {[%clk
0:00:04.3]} 44... Rf4 {[%clk 0:00:16.9]} 45. Bb7+ {[%clk 0:00:03.9]} 45... Kb8
{[%clk 0:00:17.4]} 46. Bxa6 {[%clk 0:00:04.8]} 46... Ne3+ {[%clk 0:00:17.3]} 47.
Kb3 {[%clk 0:00:05.7]} 47... Rxf7 {[%clk 0:00:16.7]} 48. fxe3 {[%clk 0:00:05.8]}
48... Bc5 {[%clk 0:00:16.6]} 49. Bc4 {[%clk 0:00:05.6]} 49... Bxe3 {[%clk
0:00:15.5]} 50. Bxe6 {[%clk 0:00:05.4]} 50... Re7 {[%clk 0:00:16.2]} 51. Bd5
{[%clk 0:00:04.9]} 51... Rxe5 {[%clk 0:00:16.6]} 52. c4 {[%clk 0:00:05.8]} 52...
h5 {[%clk 0:00:16.9]} 53. Kc2 {[%clk 0:00:06.2]} 53... h4 {[%clk 0:00:17.3]} 54.
Kd3 {[%clk 0:00:06.5]} 54... h3 {[%clk 0:00:17.8]} 55. Ke2 {[%clk 0:00:06.7]}
55... h2 {[%clk 0:00:17.6]} 56. Kf1 {[%clk 0:00:07.3]} 56... Rxd5 {[%clk
0:00:17.9]} 0-1